bitfinex/quotes_BTCUSD_20250512
["timestamp","ask_amount","ask_price","bid_price","bid_amount"]
[1747061444815,0.012,103060.0,103050.0,2.61216936]
[1747061445015,0.012,103060.0,103050.0,2.03236036]
[1747061445229,0.012,103060.0,103050.0,5.03236036]
[1747061445840,0.012,103060.0,103050.0,5.46320121]
[1747061446046,0.011,103060.0,103050.0,5.46120121]
[1747061446253,0.21340546,103090.0,103080.0,0.55342597]
[1747061446460,0.22310534,103090.0,103080.0,0.57273761]
[1747061446662,0.22310534,103090.0,103080.0,0.58243853]
[1747061446869,0.21340546,103090.0,103080.0,0.58243853]
[1747061447272,0.19400523,103090.0,103080.0,0.5533355]
[1747061447485,0.25820523,103090.0,103080.0,0.35931145]
[1747061447685,0.05130004,103090.0,103080.0,0.58243796]
[1747061447895,0.22410478,103090.0,103080.0,0.57273742]
[1747061448100,0.02039948,103090.0,103080.0,0.58243796]
[1747061448305,0.02239929,103090.0,103080.0,0.58343796]
[1747061448506,0.02239939,103090.0,103080.0,0.58343796]
[1747061448711,0.03209946,103090.0,103080.0,0.58343796]
[1747061449117,0.23580485,103090.0,103080.0,0.85731805]
[1747061449323,0.24550511,103090.0,103080.0,0.85731805]
[1747061449518,0.23580551,103090.0,103080.0,0.84761742]
[1747061449720,0.23580551,103090.0,103080.0,0.63419145]
[1747061449922,0.27780565,103090.0,103080.0,0.6245417]
[1747061450138,0.27780565,103090.0,103080.0,0.36031145]
[1747061450362,0.27780565,103090.0,103080.0,0.3506617]
[1747061450784,0.27780565,103090.0,103080.0,0.36031145]
[1747061451253,0.24690565,103090.0,103080.0,0.36031145]
[1747061452081,0.27760565,103090.0,103080.0,0.36031145]
[1747061453542,0.24690565,103090.0,103080.0,0.5640367]
[1747061453748,0.23220549,103090.0,103080.0,0.36031145]
[1747061453953,0.25410523,103090.0,103080.0,0.36031145]
[1747061454282,0.34995953,103090.0,103080.0,0.001]
[1747061454685,0.8178471,103090.0,103080.0,0.001]
[1747061454913,1.16738795,103090.0,103080.0,0.001]
[1747061455934,1.16238795,103090.0,103080.0,0.001]
[1747061457151,0.35450038,103090.0,103080.0,0.001]
[1747061457567,0.33995953,103090.0,103080.0,0.001]
[1747061458439,0.35450038,103090.0,103080.0,0.00081325]
[1747061459051,1.16238795,103090.0,103080.0,0.00081325]
[1747061459685,1.15976235,103090.0,103080.0,0.00081325]
[1747061460534,0.41704085,103080.0,103050.0,4e-05]
[1747061460740,0.27596721,103060.0,103050.0,4e-05]
[1747061460958,0.37182151,103060.0,103050.0,4e-05]
[1747061461375,0.38636236,103060.0,103050.0,4e-05]
[1747061462043,0.38736236,103060.0,103050.0,0.00104]
[1747061463290,0.41611232,103060.0,103050.0,0.00104]
[1747061463496,0.38736236,103060.0,103050.0,0.00104]
[1747061464105,0.38836236,103060.0,103050.0,0.00204]
[1747061464327,0.85624993,103060.0,103050.0,0.00204]
[1747061464539,1.19624993,103060.0,103050.0,0.00204]
[1747061464747,0.21350864,103040.0,103030.0,4e-05]
[1747061464951,1.74195136,103040.0,103030.0,4e-05]
[1747061465157,2.04195136,103040.0,103030.0,4e-05]
[1747061465389,2.05195136,103040.0,103030.0,4e-05]
[1747061466217,2.05295136,103040.0,103030.0,0.00104]
[1747061466454,0.20384372,103020.0,103010.0,4e-05]
[1747061466678,1.18362644,103020.0,103010.0,4e-05]
[1747061467414,1.49362644,103020.0,103010.0,4e-05]
[1747061467621,1.94186373,103020.0,103010.0,4e-05]
[1747061467827,1.95643775,103020.0,103010.0,4e-05]
[1747061468218,1.92032046,103020.0,103010.0,4e-05]
[1747061468465,2.47264046,103020.0,103010.0,4e-05]
[1747061468687,1.1418249,103010.0,103000.0,0.05093]
[1747061468902,1.10779192,103010.0,103000.0,0.05093]
[1747061469120,1.43690921,103010.0,103000.0,0.05093]
[1747061469342,0.28992414,103000.0,102990.0,4e-05]
[1747061469580,0.8827833,103000.0,102990.0,4e-05]
[1747061469827,0.86366601,103000.0,102990.0,4e-05]
[1747061470111,0.28967389,102980.0,102970.0,4e-05]
[1747061470319,1.39869576,102980.0,102970.0,4e-05]
[1747061470528,1.42781305,102980.0,102970.0,4e-05]
[1747061470949,1.39869576,102980.0,102970.0,4e-05]
[1747061471160,1.69869576,102980.0,102970.0,4e-05]
[1747061471363,1.69969576,102980.0,102970.0,4e-05]
[1747061471791,1.23180819,102980.0,102970.0,4e-05]
[1747061472005,1.23080819,102980.0,102970.0,4e-05]
[1747061472433,2.04269576,102980.0,102970.0,4e-05]
[1747061472656,2.10576103,102980.0,102970.0,4e-05]
[1747061472869,2.10976103,102980.0,102970.0,4e-05]
[1747061473306,2.10425637,102980.0,102970.0,4e-05]
[1747061473554,2.07522408,102980.0,102970.0,4e-05]
[1747061474643,2.11925706,102980.0,102970.0,4e-05]
[1747061474855,2.08522408,102980.0,102970.0,4e-05]
[1747061475974,1.27564819,102980.0,102970.0,4e-05]
[1747061476398,1.74353576,102980.0,102970.0,4e-05]
[1747061476840,1.75353576,102980.0,102970.0,4e-05]
[1747061477888,0.19430681,102930.0,102920.0,0.34]
[1747061478298,0.19430681,102930.0,102920.0,0.36904001]
[1747061478725,0.19432568,102920.0,102910.0,0.07787404]
[1747061478940,0.19432568,102920.0,102910.0,0.34]
[1747061479154,0.19434457,102910.0,102900.0,0.01425217]
[1747061479605,0.19434457,102910.0,102900.0,0.05297586]
[1747061479836,0.20404196,102920.0,102910.0,0.2040617]
[1747061480049,0.21475796,102920.0,102910.0,0.001]
[1747061480686,0.01071571,102920.0,102910.0,0.59619511]
[1747061480920,0.001,102920.0,102910.0,2.94988977]
[1747061481140,0.00971543,102920.0,102910.0,1.30299316]
[1747061481353,0.23418891,102920.0,102910.0,0.94127956]
[1747061481579,0.21475777,102920.0,102910.0,0.35817081]
[1747061481787,0.21475777,102920.0,102910.0,0.07401722]
[1747061482056,0.21475777,102920.0,102910.0,0.26836179]
[1747061482291,0.21575777,102920.0,102910.0,0.27807892]
[1747061482507,0.22547405,102920.0,102910.0,0.28779586]
[1747061483121,0.21575815,102920.0,102910.0,0.27807892]
[1747061483331,0.21575815,102920.0,102910.0,0.62779595]
[1747061483542,0.002,102920.0,102910.0,0.75245908]
[1747061483749,0.002,102920.0,102910.0,1.31620095]
[1747061483750,0.01171552,102920.0,102910.0,1.31620095]
[1747061483953,0.02143114,102920.0,102910.0,1.31620095]
[1747061484161,0.01171562,102920.0,102910.0,1.31620095]
[1747061484370,0.03114742,102920.0,102910.0,1.31620095]
[1747061484572,0.21575796,102920.0,102910.0,0.5002543]
[1747061484782,0.21575796,102920.0,102910.0,0.3718]
[1747061484783,0.20604196,102920.0,102910.0,0.3718]
[1747061484994,0.20604196,102920.0,102910.0,0.34]
[1747061485636,0.20604196,102920.0,102910.0,0.5440617]
[1747061485838,0.20604196,102920.0,102910.0,0.58467864]
[1747061486050,0.20604196,102920.0,102910.0,0.5749617]
[1747061486256,0.20604196,102920.0,102910.0,1.04284927]
[1747061486460,0.20604196,102920.0,102910.0,0.34]
[1747061486882,0.2040616,102910.0,102900.0,0.02918509]
[1747061487100,0.2040616,102910.0,102900.0,0.36918509]
[1747061487504,0.21377854,102910.0,102900.0,1.07135418]
[1747061487715,0.21377854,102910.0,102900.0,1.08107216]
[1747061487918,0.2040616,102910.0,102900.0,0.39938509]
[1747061488122,0.2050616,102910.0,102900.0,0.39938509]
[1747061488356,0.2050616,102910.0,102900.0,0.36918509]
[1747061488755,0.2050616,102910.0,102900.0,0.57326671]
[1747061488756,0.2060616,102910.0,102900.0,0.57326671]
[1747061488970,0.2060616,102910.0,102900.0,0.40098509]
[1747061489382,0.2060616,102910.0,102900.0,0.36918509]
[1747061493508,0.3650159,102910.0,102900.0,4e-05]
[1747061493729,1.25025652,102910.0,102900.0,4e-05]
[1747061493940,1.57278616,102910.0,102900.0,4e-05]
[1747061494140,1.55025652,102910.0,102900.0,4e-05]
[1747061494389,1.61408371,102910.0,102900.0,4e-05]
[1747061494597,0.29466076,102890.0,102880.0,0.01483966]
[1747061494829,0.66031506,102890.0,102880.0,0.01483966]
[1747061495046,0.68922177,102890.0,102880.0,0.01483966]
[1747061495271,0.64577421,102890.0,102880.0,0.01483966]
[1747061495488,0.66031506,102890.0,102880.0,0.01483966]
[1747061495930,0.67456216,102890.0,102880.0,0.01483966]
[1747061496369,0.66002131,102890.0,102880.0,0.01483966]
[1747061496783,0.64737421,102890.0,102880.0,0.01483966]
[1747061496996,0.91709421,102890.0,102880.0,0.01483966]
[1747061497209,0.92009421,102890.0,102880.0,0.01483966]
[1747061497365,0.92209421,102890.0,102880.0,0.01483966]
[1747061498004,0.38097421,102890.0,102880.0,0.01483966]
[1747061498161,0.92201421,102890.0,102880.0,0.01483966]
[1747061498556,0.38097421,102890.0,102880.0,0.01483966]
[1747061498794,0.65057421,102890.0,102880.0,0.01483966]
[1747061500435,0.66511506,102890.0,102880.0,0.01483966]
[1747061500668,1.13300263,102890.0,102880.0,0.01483966]
[1747061501703,0.66511506,102890.0,102880.0,0.01483966]
[1747061501960,0.38097421,102890.0,102880.0,0.01483966]
[1747061502608,0.37897421,102890.0,102880.0,0.01483966]
[1747061502730,0.64837421,102890.0,102880.0,0.01483966]
[1747061502970,0.31267421,102890.0,102880.0,0.01483966]
[1747061503473,0.30967421,102890.0,102880.0,0.01483966]
[1747061503736,0.31367421,102890.0,102880.0,0.01483966]
[1747061504242,0.30967421,102890.0,102880.0,0.01483966]
[1747061504510,0.31267421,102890.0,102880.0,0.01483966]
[1747061504729,0.31467421,102890.0,102880.0,0.01483966]
[1747061505076,0.37947421,102890.0,102880.0,0.01483966]
[1747061507014,0.31467421,102890.0,102880.0,0.01483966]
[1747061508104,0.21881991,102890.0,102880.0,0.48272723]
[1747061508342,0.21881991,102890.0,102880.0,0.7276683]
[1747061508554,0.21881991,102890.0,102880.0,1.11950738]
[1747061508555,0.01471826,102890.0,102880.0,1.11950738]
[1747061508778,0.22853799,102890.0,102880.0,1.11950738]
[1747061508995,0.22853875,102890.0,102880.0,1.09034853]
[1747061509222,0.2188202,102890.0,102880.0,1.09034853]
[1747061509455,0.2188202,102890.0,102880.0,1.10978836]
[1747061512023,0.81582048,102890.0,102880.0,1.69118273]
[1747061512163,0.81582048,102890.0,102880.0,1.7009026]
[1747061512387,0.81582048,102890.0,102880.0,1.71062228]
[1747061513179,0.81582048,102890.0,102880.0,1.7009026]
[1747061513594,0.81582048,102890.0,102880.0,1.71062237]
[1747061513801,0.80610146,102890.0,102880.0,1.7009026]
[1747061514016,0.81582029,102890.0,102880.0,0.92331966]
[1747061514227,0.81582029,102890.0,102880.0,0.42033966]
[1747061514657,0.81582029,102890.0,102880.0,0.62623966]
[1747061515296,0.81582029,102890.0,102880.0,0.35683966]
[1747061516309,0.81582029,102890.0,102880.0,0.01683966]
[1747061518013,0.81582029,102890.0,102880.0,0.48472723]
[1747061518363,0.81582029,102890.0,102880.0,0.01683966]
[1747061520878,0.97517459,102890.0,102880.0,0.01683966]
[1747061521303,0.91167459,102890.0,102880.0,0.01683966]
[1747061521515,0.81582029,102890.0,102880.0,0.01683966]
[1747061522493,0.81582029,102890.0,102880.0,0.67912847]
[1747061522700,0.81582029,102890.0,102880.0,0.69856792]
[1747061522911,0.83525738,102890.0,102880.0,1.51727034]
[1747061523119,0.81582038,102890.0,102880.0,0.35683966]
[1747061523594,0.81582038,102890.0,102880.0,0.82472723]
[1747061523924,0.81582038,102890.0,102880.0,0.35683966]
[1747061525267,0.81582038,102890.0,102880.0,1.02884834]
[1747061525499,0.81582038,102890.0,102880.0,0.84874738]
[1747061525717,0.81582038,102890.0,102880.0,0.83902761]
[1747061526146,0.602,102890.0,102880.0,0.93038627]
[1747061526352,0.602,102890.0,102880.0,4.72060741]
[1747061526562,0.602,102890.0,102880.0,4.44254057]
[1747061527534,0.602,102890.0,102880.0,4.84254057]
[1747061527952,0.602,102890.0,102880.0,5.12060741]
[1747061528155,0.602,102890.0,102880.0,4.84254057]
[1747061529120,0.602,102890.0,102880.0,2.82933757]
[1747061529544,0.59545299,102890.0,102880.0,3.10740441]
[1747061529968,0.07787404,102920.0,102910.0,0.22349511]
[1747061530135,0.07787404,102920.0,102910.0,0.49184539]
[1747061530136,0.08758956,102920.0,102910.0,0.49184539]
[1747061530540,0.09730527,102920.0,102910.0,0.49184548]
[1747061530750,0.08758956,102920.0,102910.0,0.50156233]
[1747061530954,0.09730527,102920.0,102910.0,0.49184548]
[1747061531158,0.06164431,102930.0,102920.0,0.20404196]
[1747061531359,0.07135946,102930.0,102920.0,0.47239252]
[1747061531510,0.28815235,102930.0,102920.0,0.19432568]
[1747061531733,0.2784373,102930.0,102920.0,0.19432568]
[1747061531958,0.08412944,102930.0,102920.0,0.21375796]
[1747061532181,0.02914449,102930.0,102920.0,0.49182499]
[1747061532403,0.22341752,102950.0,102930.0,0.21373739]
[1747061532637,0.02914167,102940.0,102930.0,0.47237365]
[1747061532873,0.02914148,102940.0,102930.0,0.47237365]
[1747061533113,0.05032539,102950.0,102940.0,0.19428793]
[1747061533339,0.01942926,102930.0,102920.0,0.54497543]
[1747061533559,0.28795178,102930.0,102920.0,0.001]
[1747061533781,0.37409131,102930.0,102920.0,0.21870722]
[1747061533996,0.36437626,102930.0,102910.0,0.19434457]
[1747061534261,0.23318891,102920.0,102910.0,0.53434457]
[1747061534497,0.23318891,102920.0,102910.0,0.82212854]
[1747061534498,0.08113171,102920.0,102910.0,0.82212854]
[1747061534707,0.04993171,102920.0,102910.0,0.82212863]
[1747061534949,0.04993171,102920.0,102910.0,0.83184576]
[1747061534950,0.05964704,102920.0,102910.0,0.83184576]
[1747061535172,0.05964704,102920.0,102910.0,0.82212863]
[1747061535386,0.07907941,102920.0,102910.0,0.47241141]
[1747061535603,0.07907941,102920.0,102910.0,0.48212844]
[1747061535604,0.01943114,102920.0,102910.0,0.48212844]
[1747061535810,0.0651,102930.0,102920.0,0.20404177]
[1747061536023,0.001,102930.0,102920.0,0.50154013]
[1747061536233,0.001,102930.0,102920.0,0.85118988]
[1747061536448,0.001,102930.0,102920.0,2.95829718]
[1747061536659,0.001,102930.0,102920.0,1.18914518]
[1747061536897,0.01942774,102940.0,102930.0,0.2137372]
[1747061537105,0.22343044,102940.0,102930.0,0.47237365]
[1747061537336,0.22343044,102940.0,102930.0,0.19430681]
[1747061537567,0.21373673,102930.0,102920.0,0.21982216]
[1747061537786,0.01942926,102930.0,102920.0,0.22953825]
[1747061538005,0.03885917,102930.0,102920.0,0.5270368]
[1747061538238,0.04857413,102930.0,102920.0,0.5367528]
[1747061538441,0.04857479,102930.0,102920.0,0.52703699]
[1747061538852,0.01942963,102930.0,102920.0,0.5367528]
[1747061539056,0.02442812,102940.0,102920.0,0.52703586]
[1747061539264,0.00971458,102930.0,102920.0,0.23925359]
[1747061539493,0.001,102930.0,102920.0,0.23925359]
[1747061539700,0.01071458,102930.0,102920.0,0.24025359]
[1747061539959,0.02042925,102930.0,102920.0,0.24025359]
[1747061540164,0.02042925,102930.0,102920.0,0.24996968]
[1747061540373,0.02042925,102930.0,102920.0,0.24025406]
[1747061540617,0.02042925,102930.0,102920.0,0.52803652]
[1747061541041,0.02042925,102930.0,102920.0,0.52683629]
[1747061541243,0.02042925,102930.0,102920.0,0.536552]
[1747061541401,0.03014411,102930.0,102920.0,0.52683629]
[1747061541604,0.02042925,102930.0,102920.0,0.52683629]
[1747061541810,0.03014402,102930.0,102920.0,0.52683629]
[1747061542018,0.03014402,102930.0,102920.0,0.54148189]
[1747061542201,0.001,102930.0,102920.0,0.54148189]
[1747061542398,0.01071449,102930.0,102920.0,0.54148189]
[1747061542580,0.01071449,102930.0,102920.0,1.49917689]
[1747061543014,0.02042916,102930.0,102920.0,1.49917689]
[1747061543629,0.001,102930.0,102920.0,1.49917689]
[1747061543863,0.001,102930.0,102920.0,0.54148189]
[1747061544064,0.001,102930.0,102920.0,0.26341505]
[1747061544394,0.02042953,102930.0,102920.0,0.26341505]
[1747061544598,0.23416673,102930.0,102920.0,0.23426753]
[1747061544812,0.23416673,102930.0,102920.0,0.2536999]
[1747061545230,0.03014458,102930.0,102920.0,0.28284723]
[1747061545435,0.01071467,102930.0,102920.0,0.27313171]
[1747061545720,0.001,102930.0,102920.0,1.74827017]
[1747061545910,0.001,102930.0,102920.0,2.41673206]
[1747061546749,0.001,102930.0,102920.0,1.47316438]
[1747061546968,0.001,102930.0,102920.0,2.01763122]
[1747061547179,0.002,102930.0,102920.0,2.02063122]
[1747061547777,0.001,102930.0,102920.0,2.02063122]
[1747061547982,0.001,102930.0,102920.0,2.42263122]
[1747061548233,0.002,102930.0,102920.0,2.42263122]
[1747061548634,0.002,102930.0,102920.0,2.41763122]
[1747061549083,0.002,102930.0,102920.0,2.69569806]
[1747061549305,0.00971166,102960.0,102950.0,0.22340752]
[1747061549568,0.03884814,102960.0,102950.0,0.97177152]
[1747061549772,0.23309917,102960.0,102950.0,0.88045346]
[1747061549981,0.02913648,102960.0,102950.0,0.88045346]
[1747061550164,0.23309908,102960.0,102950.0,0.95478452]
[1747061550364,0.23309908,102960.0,102950.0,0.96449759]
[1747061550989,0.0194236,102960.0,102950.0,1.32392279]
[1747061551195,0.0214236,102960.0,102950.0,1.32492279]
[1747061551408,0.04084795,102960.0,102950.0,1.32492279]
[1747061551611,0.0244235,102960.0,102950.0,1.32592279]
[1747061551813,0.03413563,102960.0,102950.0,1.32592279]
[1747061552024,0.04384795,102960.0,102950.0,1.32592279]
[1747061553533,0.0244235,102960.0,102950.0,1.32592279]
[1747061553737,0.05355979,102960.0,102950.0,1.13018079]
[1747061553940,0.05355979,102960.0,102950.0,1.88777679]
[1747061554560,0.24781082,102960.0,102950.0,1.64494284]
[1747061554751,0.23809898,102960.0,102950.0,1.17295629]
[1747061554965,0.23809898,102960.0,102950.0,1.16324284]
[1747061555202,0.23809898,102960.0,102950.0,1.17295629]
[1747061555410,0.28047501,102960.0,102950.0,0.26928]
[1747061555616,0.28047501,102960.0,102950.0,0.60928]
[1747061555887,0.28047501,102960.0,102950.0,0.88734684]
[1747061556292,0.24897501,102960.0,102950.0,0.88734684]
[1747061556493,0.21867501,102960.0,102950.0,0.88734684]
[1747061557217,0.27907501,102960.0,102950.0,0.60928]
[1747061557427,0.27907501,102960.0,102950.0,0.002]
[1747061557605,0.65299615,102960.0,102950.0,0.002]
[1747061557823,0.91859615,102960.0,102950.0,0.002]
[1747061558035,0.933137,102960.0,102950.0,0.002]
[1747061559522,0.65507016,102960.0,102950.0,0.002]
[1747061560815,0.933137,102960.0,102950.0,0.002]
[1747061561685,0.65507016,102960.0,102950.0,0.002]
[1747061561910,0.933137,102960.0,102950.0,0.002]
[1747061562560,0.65507016,102960.0,102950.0,0.002]
[1747061562757,0.65307016,102960.0,102950.0,0.001]
[1747061563040,0.65907016,102960.0,102950.0,0.002]
[1747061563739,0.937137,102960.0,102950.0,0.002]
[1747061563955,0.934137,102960.0,102950.0,0.001]
[1747061564165,1.204337,102960.0,102950.0,0.002]
[1747061565030,1.21317363,102960.0,102950.0,0.002]
[1747061565852,0.93510679,102960.0,102950.0,0.002]
[1747061566052,1.21317374,102960.0,102950.0,0.002]
[1747061567988,0.39547016,102960.0,102950.0,0.002]
[1747061568192,0.66039016,102960.0,102950.0,0.002]
[1747061568781,0.938457,102960.0,102950.0,0.002]
[1747061570019,0.66922387,102960.0,102950.0,0.002]
[1747061570818,0.66039016,102960.0,102950.0,0.002]
[1747061572093,0.71873016,102960.0,102950.0,0.002]
[1747061572266,0.66039016,102960.0,102950.0,0.002]
[1747061572609,0.938457,102960.0,102950.0,0.002]
[1747061575071,0.66039016,102960.0,102950.0,0.002]
[1747061575953,0.938457,102960.0,102950.0,0.002]
[1747061577322,0.66039016,102960.0,102950.0,0.002]
[1747061578247,0.938457,102960.0,102950.0,0.002]
[1747061579627,1.21652384,102960.0,102950.0,0.002]
[1747061579825,0.938457,102960.0,102950.0,0.002]
[1747061581941,0.66039016,102960.0,102950.0,0.002]
[1747061582159,0.39547016,102960.0,102950.0,0.002]
[1747061582363,0.32052931,102960.0,102950.0,0.28006684]
[1747061582767,0.22467501,102960.0,102950.0,0.28006684]
[1747061583021,0.22467501,102960.0,102950.0,0.8444359]
[1747061583225,0.21496269,102960.0,102950.0,0.68216684]
[1747061583667,0.21496269,102960.0,102950.0,0.4041]
[1747061583931,0.20996269,102960.0,102950.0,0.4031]
[1747061584134,0.20996269,102960.0,102950.0,0.64916684]
[1747061584286,0.21196269,102960.0,102950.0,0.65016684]
[1747061584488,0.20596269,102960.0,102950.0,0.88544916]
[1747061584750,0.0311361,102960.0,102950.0,0.88132818]
[1747061584950,0.0311361,102960.0,102950.0,0.68146684]
[1747061584951,0.21567454,102960.0,102950.0,0.68146684]
[1747061585150,0.21767454,102960.0,102950.0,0.88544916]
[1747061585585,0.93385653,102960.0,102950.0,0.001]
[1747061585797,1.21192337,102960.0,102950.0,0.001]
[1747061586015,0.93385653,102960.0,102950.0,0.001]
[1747061586615,0.94270213,102960.0,102950.0,0.001]
[1747061587727,0.38637444,102960.0,102950.0,0.001]
[1747061587953,0.40091529,102960.0,102950.0,0.001]
[1747061588158,0.31352884,102960.0,102950.0,0.27906684]
[1747061588366,0.21767454,102960.0,102950.0,0.27906684]
[1747061588573,0.31352884,102960.0,102950.0,0.001]
[1747061590256,0.39156969,102960.0,102950.0,0.001]
[1747061590459,0.66963653,102960.0,102950.0,0.001]
[1747061591500,0.6784875,102960.0,102950.0,0.001]
[1747061591709,0.40042066,102960.0,102950.0,0.001]
[1747061592159,0.9436875,102960.0,102950.0,0.001]
[1747061592408,1.2836875,102960.0,102950.0,0.001]
[1747061592662,1.99131434,102960.0,102950.0,0.001]
[1747061592882,0.20410127,102890.0,102880.0,0.0927137]
[1747061594093,0.2138201,102890.0,102880.0,0.58362782]
[1747061594316,0.2138201,102890.0,102880.0,0.58762782]
[1747061594573,0.2148201,102890.0,102880.0,0.58762782]
[1747061594829,0.2158201,102890.0,102880.0,0.123203]
[1747061595055,0.2158201,102890.0,102880.0,0.123003]
[1747061596460,0.2158201,102890.0,102880.0,0.04512896]
[1747061597110,0.2148201,102890.0,102880.0,0.04112896]
[1747061597327,0.2138201,102890.0,102880.0,0.03612896]
[1747061597555,0.2158201,102890.0,102880.0,0.04312896]
[1747061597798,0.2158201,102890.0,102880.0,0.04112896]
[1747061598018,0.2148201,102890.0,102880.0,0.03807274]
[1747061598246,0.20610127,102890.0,102880.0,0.03812896]
[1747061598468,0.20710127,102890.0,102880.0,0.04112896]
[1747061598942,0.19710127,102890.0,102880.0,0.04307274]
[1747061599195,0.20682019,102890.0,102880.0,0.57747398]
[1747061599440,0.003,102890.0,102880.0,1.58039342]
[1747061599679,0.003,102890.0,102880.0,1.66791721]
[1747061599912,0.003,102890.0,102880.0,2.35043721]
[1747061600140,0.009716,102920.0,102910.0,0.5440616]
[1747061600409,0.22347348,102920.0,102910.0,1.18335757]
[1747061600640,0.23318976,102920.0,102910.0,1.17364072]
[1747061600868,0.01943171,102920.0,102910.0,1.19307432]
[1747061601096,0.21373682,102930.0,102920.0,0.55375796]
[1747061601349,0.22345206,102930.0,102920.0,1.01346678]
[1747061601575,0.2137372,102930.0,102920.0,0.34]
[1747061602299,0.2147372,102930.0,102920.0,0.341]
[1747061602783,0.20502205,102930.0,102920.0,0.341]
[1747061603471,0.20402205,102930.0,102920.0,0.34]
[1747061603716,0.20402205,102930.0,102920.0,0.53532568]
[1747061603951,0.20402205,102930.0,102920.0,0.54597543]
[1747061604199,0.20402205,102930.0,102920.0,0.55569171]
[1747061604424,0.20402205,102930.0,102920.0,0.5654079]
[1747061604648,0.20402205,102930.0,102920.0,0.55569171]
[1747061604880,0.20402205,102930.0,102920.0,0.35164975]
[1747061605104,0.20402205,102930.0,102920.0,0.342]
[1747061605750,0.2038388,102930.0,102920.0,0.342]
[1747061608413,0.2038388,102930.0,102920.0,1.0057505]
[1747061608595,0.2038388,102930.0,102920.0,0.8211411]
[1747061609328,0.2038388,102930.0,102920.0,0.35171628]
[1747061609874,0.2038388,102930.0,102920.0,0.54604196]
[1747061610347,0.2038388,102930.0,102920.0,0.54604187]
[1747061610576,0.2038388,102930.0,102920.0,0.342]
[1747061612052,0.29151225,102940.0,102930.0,0.0194302]
[1747061612053,0.19428914,102940.0,102930.0,0.0194302]
[1747061612296,0.20400353,102940.0,102930.0,0.00194291]
[1747061612507,0.21373692,102930.0,102920.0,0.342]
[1747061612734,0.20402215,102930.0,102920.0,0.342]
[1747061612950,0.20402215,102930.0,102920.0,0.341]
[1747061615373,0.20402215,102930.0,102920.0,0.342]
[1747061616232,0.20402215,102930.0,102920.0,0.002]
[1747061616233,0.26852215,102930.0,102920.0,0.002]
[1747061617888,0.64229692,102930.0,102920.0,0.002]
[1747061618103,0.90385692,102930.0,102920.0,0.002]
[1747061619432,0.91839777,102930.0,102920.0,0.002]
[1747061619596,1.53631824,102930.0,102920.0,0.002]
[1747061619798,1.83631824,102930.0,102920.0,0.002]
[1747061620033,1.55839777,102930.0,102920.0,0.002]
[1747061620243,1.55839777,102930.0,102920.0,0.001]
[1747061620681,0.21381991,102890.0,102880.0,0.45555045]
[1747061621736,0.21381991,102890.0,102880.0,0.37767641]
[1747061621926,0.21381991,102890.0,102880.0,0.01563966]
[1747061622141,0.27861991,102890.0,102880.0,0.01563966]
[1747061622826,0.27861991,102890.0,102880.0,0.01763966]
[1747061622984,0.37547421,102890.0,102880.0,0.01963966]
[1747061625449,0.66793553,102890.0,102880.0,0.01963966]
[1747061625673,1.30793553,102890.0,102880.0,0.01963966]
[1747061626154,1.30793553,102890.0,102880.0,0.01563966]
[1747061626155,1.30693553,102890.0,102880.0,0.01563966]
[1747061626365,1.82917553,102890.0,102880.0,0.01763966]
[1747061626581,1.83017553,102890.0,102880.0,0.02063966]
[1747061626803,1.21221506,102890.0,102880.0,0.01763966]
[1747061627021,1.21521506,102890.0,102880.0,0.01663966]
[1747061627227,1.21821506,102890.0,102880.0,0.01763966]
[1747061627685,0.91821506,102890.0,102880.0,0.01763966]
[1747061627912,0.38147421,102890.0,102880.0,0.01763966]
[1747061628538,0.22081991,102890.0,102880.0,0.01763966]
[1747061628771,0.65919468,102890.0,102880.0,0.01763966]
[1747061629008,0.67373553,102890.0,102880.0,0.01763966]
[1747061634343,0.39581506,102890.0,102880.0,0.01763966]
[1747061634541,0.67373553,102890.0,102880.0,0.01763966]
[1747061637883,0.91741506,102890.0,102880.0,0.01763966]
[1747061638089,1.19533553,102890.0,102880.0,0.01763966]
[1747061638304,0.91741506,102890.0,102880.0,0.01763966]
[1747061638506,1.19533553,102890.0,102880.0,0.01763966]
[1747061638719,1.53533553,102890.0,102880.0,0.01763966]
[1747061638921,1.83533553,102890.0,102880.0,0.01763966]
[1747061640421,1.31373553,102890.0,102880.0,0.01763966]
[1747061640615,1.55725506,102890.0,102880.0,0.01763966]
[1747061640998,1.83517553,102890.0,102880.0,0.01763966]
[1747061641376,0.73581506,102890.0,102880.0,0.01763966]
[1747061641587,0.38127421,102890.0,102880.0,0.01763966]
[1747061641814,0.64139421,102890.0,102880.0,0.01763966]
[1747061642215,0.57679421,102890.0,102880.0,0.01763966]
[1747061643150,0.93345553,102890.0,102880.0,0.01763966]
[1747061643365,0.65553506,102890.0,102880.0,0.01763966]
[1747061643781,0.62417506,102890.0,102880.0,0.01763966]
[1747061644203,0.60963421,102890.0,102880.0,0.01763966]
[1747061644433,0.57663421,102890.0,102880.0,0.01763966]
[1747061646584,0.31667421,102890.0,102880.0,0.01763966]
[1747061646808,0.31667421,102890.0,102880.0,0.29556013]
[1747061646809,0.22081991,102890.0,102880.0,0.29556013]
[1747061647060,0.22081991,102890.0,102880.0,0.01763966]
[1747061647322,0.31667421,102890.0,102880.0,0.01763966]
[1747061647536,0.65619468,102890.0,102880.0,0.01663966]
[1747061647753,0.37827421,102890.0,102880.0,0.01663966]
[1747061648456,0.25912014,102870.0,102840.0,4e-05]
[1747061648716,1.20786438,102850.0,102840.0,4e-05]
[1747061648936,1.27620438,102850.0,102840.0,4e-05]
[1747061649172,1.73870438,102850.0,102840.0,4e-05]
[1747061649388,0.88954391,102850.0,102840.0,4e-05]
[1747061649618,0.98539821,102850.0,102840.0,4e-05]
[1747061649865,0.98539821,102850.0,102840.0,0.00804]
[1747061650085,1.26331868,102850.0,102840.0,0.00404]
[1747061650314,1.26331868,102850.0,102840.0,4e-05]
[1747061650535,1.27331868,102850.0,102840.0,0.00204]
[1747061651008,0.99539821,102850.0,102840.0,0.00204]
[1747061651238,1.27331868,102850.0,102840.0,0.00204]
[1747061653214,0.99539821,102850.0,102840.0,0.00204]
[1747061654573,1.57331868,102850.0,102840.0,0.00204]
[1747061655233,1.23331868,102850.0,102840.0,0.00204]
[1747061655614,1.58331868,102850.0,102840.0,0.00204]
[1747061655819,1.68331868,102850.0,102840.0,0.00204]
[1747061656267,1.40539821,102850.0,102840.0,0.00204]
[1747061656480,1.68331868,102850.0,102840.0,0.00204]
[1747061656738,1.67331868,102850.0,102840.0,4e-05]
[1747061656924,1.68131868,102850.0,102840.0,0.00104]
[1747061657113,1.77717298,102850.0,102840.0,0.00104]